[Event "1000GM Schev-A February 2024"]
[Site "Santa Clara"]
[Date "2024.02.18"]
[Round "2.2"]
[White "Arenas, David"]
[Black "Sivakumar, Shaashwath"]
[Result "1/2-1/2"]
[ECO "B50"]
[WhiteElo "2406"]
[BlackElo "2205"]
[Annotator "TA"]
[PlyCount "48"]
[EventDate "2024.02.13"]
[EventType "schev"]
[EventCountry "USA"]
[SourceTitle "playchess.com"]
[Source "ChessBase"]
[SourceQuality "1"]
[TimeControl "5400+30"]

{[%evp 23,48,18,22,0,8,0,0,0,12,0,0,0,0,0,0,-1,43,0,0,0,8,0,97,34,45,28,35]} 1. e4 {[%emt 0:05:30]} c5 {[%emt 0:00:10]} 2. Nf3 {[%emt 0:00:02]} d6 {[%emt 0:00:09]} 3. c3 {[%emt 0:00:12]} Nf6 {[%emt 0:00:13]} 4. h3 {[%emt 0:00:06]} g6 {[%emt 0:04:00]} 5. Bd3 {[%emt 0:00:15]} Bg7 {[%emt 0:02:15]} 6. Bc2 {[%emt 0:00:04]} e5 {[%emt 0:07:05]} 7. O-O {[%emt 0:00:19]} O-O {[%emt 0:00:37]} 8. d4 {[%emt 0:00:13]} exd4 {[%emt 0:02:37]} 9. cxd4 {[%emt 0:00:08]} cxd4 {[%emt 0:03:55]} 10. Nxd4 {[%emt 0:00:57]} Nc6 {[%emt 0:06:06]} 11. Nc3 {[%emt 0:10:16]} d5 {[%emt 0:11:52]} 12. Nxc6 {[%emt 0:06:19]} bxc6 {[%emt 0:00:05]} 13. Be3 {[%emt 0:01:00]} Re8 {[%emt 0:17:39]} 14. exd5 {[%emt 0:01:15]} Nxd5 {[%emt 0:00:05]} 15. Nxd5 {[%emt 0:00:45] The position is equal.} Qxd5 {[%emt 0:00:31]} 16. Qc1 {[%emt 0:03:38]} Qb5 {[%emt 0:06:44]} 17. Rb1 {[%emt 0:06:17]} Be6 {[%emt 0:01:19]} 18. b3 {[%emt 0:00:54]} Rad8 {[%emt 0:07:39]} 19. Rd1 {[%emt 0:03:39]} Qh5 {[%emt 0:04:06]} 20. Rxd8 {[%emt 0:01:21]} Rxd8 {[%emt 0:00:06]} 21. Be4 {[%emt 0:00:17]} Qa5 {[%emt 0:06:46]} 22. Qc2 {[%emt 0:03:28]} (22. Bxc6 $2 {too greedy.} Bf5 (22... Qxa2 23. Be4 $11) 23. a4 Bxb1 24. Qxb1 Bd4 25. Bxd4 Rxd4 $19) 22... f5 {[%emt 0:08:30]} (22... Bd4 $11 {remains equal.}) 23. Bf3 {[%emt 0:02:38]} (23. Bxc6 $16 h5 24. Bf3) 23... c5 $1 $14 {[%emt 0:01:03]} 24. Rd1 {[%emt 0:06:43]} Bd4 {[%emt 0:02:49] Weighted Error Value: White=0.17 (very precise) /Black=0.24 (precise) .  Mistake:       	White=1     	Black=1      Inaccurate:     	White=1     	Black=1      OK:         	White=3     	Black=3      Strong:       	---       	Black=1} 1/2-1/2

[Event "1000GM Schev-A February 2024"]
[Site "Santa Clara"]
[Date "2024.02.18"]
[Round "2.3"]
[White "Zuluaga Mancilla, Cesar"]
[Black "Zhou, Ruoyu"]
[Result "1/2-1/2"]
[ECO "D55"]
[WhiteElo "2251"]
[BlackElo "2112"]
[Annotator "TA"]
[PlyCount "146"]
[EventDate "2024.02.13"]
[EventType "schev"]
[EventCountry "USA"]
[SourceTitle "playchess.com"]
[Source "ChessBase"]
[SourceQuality "1"]
[TimeControl "5400+30"]

{[%evp 15,146,10,20,-16,101,106,99,107,91,74,122,48,48,29,47,0,0,0,0,-52,-52,-78,28,29,83,70,58,37,25,-21,-9,-6,-10,-17,-15,-10,0,0,0,-102,0,-116,-16,-118,-76,-109,-71,-83,-30,-35,0,-39,0,-55,0,-51,0,-50,-41,-123,-47,-43,0,-163,-153,-157,-72,-70,-5,-7,0,0,-2,-2,-2,-41,0,-14,0,-12,0,0,18,0,0,0,16,18,6,0,9,8,12,0,16,0,19,17,37,0,0,0,27,0,0,0,0,0,0,-17,0,0,0,-27,0,-7,-6,-127,-127,-127,-33,-33,-42,-36,-39,-66,-7,-7,0,-37,-7,-35,0]} 1. d4 {[%emt 0:09:33]} d5 {[%emt 0:00:09]} 2. Nf3 {[%emt 0:00:06]} Nf6 {[%emt 0:00:15]} 3. c4 {[%emt 0:00:43]} e6 {[%emt 0:00:12]} 4. Nc3 {[%emt 0:00:05]} Be7 {[%emt 0:00:44]} 5. Bg5 {[%emt 0:00:27]} h6 {[%emt 0:00:24]} 6. Bxf6 {[%emt 0:00:17]} Bxf6 {[%emt 0:00:36]} 7. e3 {[%emt 0:00:07]} O-O {[%emt 0:01:33]} 8. Qc2 {[%emt 0:00:15]} b6 {[%emt 0:03:03]} 9. O-O-O {[%emt 0:02:07]} Ba6 {[%emt 0:20:01]} (9... Nc6 $11) 10. cxd5 $16 {[%emt 0:06:59]} Bxf1 {[%emt 0:03:23]} 11. Rhxf1 {[%emt 0:00:42] And now dxe6 would win. White is better.} exd5 {[%emt 0:00:10]} 12. h4 {[%emt 0:01:11] White is more active.} c6 {[%emt 0:14:21]} (12... c5 $142) 13. Rh1 {[%emt 0:00:40]} (13. g4 $1 $16 {[%cal Rg4g5]}) 13... Qd7 $14 {[%emt 0:06:34]} 14. Rdg1 {[%emt 0:02:10]} Qg4 {[%emt 0:04:51]} 15. Rh3 {[%emt 0:02:39]} (15. Nh2 $14 {might be stronger.} Qe6 16. g4) 15... Nd7 {[%emt 0:06:10]} 16. Rg3 {[%emt 0:01:14]} Qe6 {[%emt 0:02:36]} 17. Rh1 {[%emt 0:00:50]} (17. Rh3 $11) 17... Be7 {[%emt 0:09:00]} 18. Kb1 {[%emt 0:06:06]} f5 {[%emt 0:02:06]} (18... Rac8 $17 19. e4 dxe4 20. Nxe4 Qf5) 19. h5 $11 {[%emt 0:00:41]} Bd6 {[%emt 0:02:25]} (19... Rae8 $11) 20. Rg6 $16 {[%emt 0:00:36]} Rf6 {[%emt 0:00:45]} 21. Nh4 {[%emt 0:00:39]} Rxg6 {[%emt 0:01:08]} 22. hxg6 {[%emt 0:02:33]} (22. Nxg6 $142 Re8 23. g3) 22... Rf8 $11 {[%emt 0:01:15]} 23. g3 {[%emt 0:03:04]} Rf6 {[%emt 0:03:34]} 24. Ne2 {[%emt 0:06:36][%cal Oa2a4]} Nf8 {[%emt 0:02:12]} 25. Rc1 {[%emt 0:00:11]} (25. Qxc6 $2 Qe4+ (25... Nxg6 26. Nc3 $14) 26. Qc2 Qxh1+ $19) 25... Bb8 {[%emt 0:03:12]} 26. b4 {[%emt 0:04:19][%cal Ob4b5]} b5 {[%emt 0:03:31][%cal Of8d7]} (26... Nxg6 27. Nxg6 Rxg6 28. b5 $14) 27. Nc3 {[%emt 0:02:11]} (27. a4 $11 {was the only way to keep the balance.} bxa4 (27... Nxg6 $2 28. Nxg6 Rxg6 29. axb5 $18) 28. Ka2 (28. Qxa4 f4 $15)) 27... Bd6 {[%emt 0:00:45]} ({Much worse is} 27... Nxg6 $6 28. Nxg6 Rxg6 29. Nxb5 $15) (27... f4 $1 $17 {[%cal Rf4g3]} 28. exf4 (28. gxf4 $2 {too greedy.} Qh3 $19) 28... Bxf4 29. gxf4 Qh3) 28. a3 {[%emt 0:00:18] [#]} (28. Ne2 $11 {keeps the balance.}) 28... Nxg6 {[%emt 0:01:46]} (28... f4 $1 $17 {[%cal Rf4g3]} 29. exf4 (29. gxf4 $2 {perishes.} Qh3 $19) 29... Bxf4 30. gxf4 Qh3) 29. Nf3 {[%emt 0:01:38]} (29. Nxg6 $11 Rxg6 30. Ne2) 29... Ne7 {[%emt 0:01:20]} 30. Nd2 {[%emt 0:00:19]} Qd7 {[%emt 0:00:59][%cal Oa7a5]} 31. Nb3 {[%emt 0:00:27]} Rf8 {[%emt 0:01:09]} ({Better is} 31... g5 $17) 32. Ne2 {[%emt 0:00:53]} Rc8 {[%emt 0:00:49]} 33. Kb2 {[%emt 0:00:21]} Qe6 {[%emt 0:01:09]} 34. Na5 {[%emt 0:01:32]} (34. Nc5 $11 Qf6 35. Nf4) 34... Qd7 {[%emt 0:01:13]} (34... g5 $15) 35. Ng1 {[%emt 0:00:57]} (35. Nb3 $11) 35... Qe6 {[%emt 0:00:46]} (35... Rc7 $15) 36. Nf3 {[%emt 0:00:24]} (36. Ne2 $11) 36... Rc7 $15 {[%emt 0:00:40]} 37. Nh4 {[%emt 0:03:21]} (37. Qd3 $15) 37... Qe4 {[%emt 0:00:50]} ({Black should try} 37... g5 $17 38. Nf3 g4) 38. Qd1 {[%emt 0:00:27]} Qe6 {[%emt 0:01:10]} 39. Qf3 $2 {[%emt 0:04:04]} (39. Qc2 $11 {and White stays safe.}) 39... g5 $19 {[%emt 0:00:43]} 40. Ng2 {[%emt 0:01:52][%cal Bh4g2,Bg2e1,Be1f3][%mdl 32] [#]} Qe4 {[%emt 0:00:12]} (40... Nc8 $142 $1 41. Ne1 Nb6) 41. Ne1 $17 {[%emt 0:01:58]} Qxf3 {[%emt 0:00:23]} (41... Kg7 $15) 42. Nxf3 $11 {[%emt 0:00:01]} g4 {[%emt 0:00:32]} 43. Nh4 {[%emt 0:01:12]} Kf7 {[%emt 0:00:27]} 44. Rh1 {[%emt 0:00:45]} Kf6 {[%emt 0:00:40]} 45. Nb3 {[%emt 0:01:06]} Rc8 {[%emt 0:00:29]} 46. Ng2 {[%emt 0:00:14]} Kg6 {[%emt 0:00:26]} 47. Nc1 {[%emt 0:01:46]} Rc7 {[%emt 0:00:29]} 48. Nd3 {[%emt 0:01:05]} Ng8 {[%emt 0:00:45]} 49. Ne5+ {[%emt 0:04:29][%mdl 1024] White has compensation.} Kf6 {[%emt 0:00:25]} 50. Nd3 {[%emt 0:00:28]} Kg6 {[%emt 0:00:01]} 51. Rc1 {[%emt 0:00:43]} Kf6 {[%emt 0:00:30]} 52. Kb3 {[%emt 0:02:55]} Ne7 {[%emt 0:00:31]} 53. Rh1 {[%emt 0:00:17]} Ng8 {[%emt 0:00:12]} 54. Rh5 {[%emt 0:04:46]} Kg6 {[%emt 0:00:45]} 55. Rh1 {[%emt 0:01:04]} Kf6 {[%emt 0:00:06]} 56. a4 {[%emt 0:03:37] Strongly threatening axb5.} a6 {[%emt 0:00:34]} 57. Rc1 {[%emt 0:03:17]} Ne7 {[%emt 0:00:13]} 58. Ngf4 {[%emt 0:00:38]} Rc8 {[%emt 0:00:47]} 59. axb5 {[%emt 0:02:46]} axb5 {[%emt 0:00:01]} 60. Ra1 {[%emt 0:00:07]} Rc7 {[%emt 0:00:22]} 61. Ra6 {[%emt 0:00:27]} Rc8 {[%emt 0:00:30]} 62. Ne2 {[%emt 0:03:31]} Ke6 {[%emt 0:00:30]} 63. Ra1 {[%emt 0:00:23]} Kf6 {[%emt 0:00:46]} 64. Nc3 {[%emt 0:00:15]} Ke6 {[%emt 0:00:18]} 65. Rh1 {[%emt 0:00:18]} Rh8 {[%emt 0:00:20]} 66. Nf4+ {[%emt 0:00:46]} (66. Ne2 $11) 66... Bxf4 $17 {[%emt 0:00:22]} 67. exf4 {[%emt 0:00:10][%mdl 4096] Endgame. KRN-KRN} Kd6 {[%emt 0:00:29]} (67... h5 $17 68. Ne2 Ng6) 68. Nd1 {[%emt 0:01:20]} h5 {[%emt 0:04:56]} 69. Ne3 {[%emt 0:00:09]} Ke6 {[%emt 0:00:00]} 70. Ng2 {[%emt 0:02:31]} Kf6 {[%emt 0:00:00]} (70... Ng8 $15) 71. Ra1 $11 {[%emt 0:00:45]} Ke6 {[%emt 0:00:00]} 72. Ra7 {[%emt 0:00:19]} Rg8 {[%emt 0:00:00]} 73. Nh4 {[%emt 0:02:08]} Rh8 {[%emt 0:02:30] Weighted Error Value: White=0.31/Black=0.27 (precise) .  Loses game:     	White=1     	---        Mistake:       	White=12    	Black=14     Inaccurate:     	White=10    	Black=10     OK:         	White=14    	Black=15     Best:        	White=5     	Black=3} 1/2-1/2

[Event "1000GM Schev-A February 2024"]
[Site "Santa Clara"]
[Date "2024.02.18"]
[Round "2.4"]
[White "Rajaram, Rohan"]
[Black "Dominguez Aguilar, Guillermo"]
[Result "0-1"]
[ECO "E10"]
[WhiteElo "2151"]
[BlackElo "2319"]
[Annotator "TA"]
[PlyCount "112"]
[EventDate "2024.02.13"]
[EventType "schev"]
[EventCountry "USA"]
[SourceTitle "playchess.com"]
[Source "ChessBase"]
[SourceQuality "1"]
[TimeControl "5400+30"]

{[%evp 17,112,63,67,48,41,47,78,91,83,56,96,84,87,75,94,0,76,47,47,52,91,104,109,102,118,115,141,112,116,91,88,103,186,-46,-67,-227,2,31,378,334,361,8,8,-47,-48,-46,-50,-48,-45,-426,-424,-392,-407,-419,-427,-412,-228,-374,-105,-381,-450,-452,-433,-431,-419,-651,-665,-665,-665,-750,-737,-714,-676,-737,-285,-486,-485,-664,-364,-652,-384,-727,-687,-29976,-29977,-29976,-29977,-29982,-29983,-29981,-29981,-29992,-29993,-29993,-29994,-29994,-29995]} 1. d4 {[%emt 0:01:26][%cal Bd2d4,Bd4d5][%mdl 32]} Nf6 {[%emt 0:03:04]} 2. c4 {[%emt 0:00:06]} c5 {[%emt 0:00:18]} 3. d5 {[%emt 0:00:06]} b5 {[%emt 0:00:19]} 4. cxb5 {[%emt 0:00:23]} e6 {[%emt 0:00:03]} 5. Nc3 {[%emt 0:00:36]} a6 {[%emt 0:00:40]} 6. e3 {[%emt 0:01:10]} Bb7 {[%emt 0:00:34]} 7. dxe6 {[%emt 0:00:51]} fxe6 {[%emt 0:01:22]} 8. Nf3 {[%emt 0:00:21]} Be7 {[%emt 0:01:44]} 9. Be2 {[%emt 0:00:40]} O-O {[%emt 0:00:25]} 10. O-O {[%emt 0:00:26]} axb5 {[%emt 0:00:21]} 11. Nxb5 {[%emt 0:01:27]} d5 {[%emt 0:04:42]} 12. b3 {[%emt 0:03:56] Weiß steht besser.} Nc6 {[%emt 0:11:01]} 13. Bb2 {[%emt 0:01:29]} Qb8 {[%emt 0:00:45]} 14. h3 {[%emt 0:10:52]} (14. a4 {hält die Spannung aufrecht.} Ne4 15. Rc1 Ba6 16. h3) 14... e5 {[%emt 0:03:12][%cal Be6e5,Be5e4][%mdl 32]} 15. Ng5 {[%emt 0:04:08]} Nd8 {[%emt 0:06:04] Verhindert Ne6} 16. Nf3 {[%emt 0:11:06]} (16. f4 $16 e4 17. Bg4) 16... Nf7 {[%emt 0:02:12]} (16... Nc6 $11) 17. Qc2 {[%emt 0:01:43]} e4 {[%emt 0:01:47]} 18. Nh2 {[%emt 0:00:55]} Bc6 {[%emt 0:01:35]} 19. a4 {[%emt 0:01:07]} Nh6 {[%emt 0:31:54]} 20. Rac1 {[%emt 0:09:42]} Bd7 {[%emt 0:02:05]} 21. Qc3 {[%emt 0:05:11]} Bxb5 {[%emt 0:09:49]} 22. Bxb5 {[%emt 0:06:45]} Bd6 {[%emt 0:00:07] [#]} 23. Ng4 {[%emt 0:03:04][%mdl 512]} Nhxg4 {[%emt 0:00:09]} 24. hxg4 {[%emt 0:00:05] Droht stark g5.} Ra7 {[%emt 0:00:56]} (24... Kh8 $16 {war einen Versuch wert.}) 25. g5 $2 {[%emt 0:03:19]} (25. Qd2 $18 {g5 wäre nun fies.} d4 26. Qd1 (26. exd4 Bh2+ 27. Kh1 Bf4 $18)) 25... Ng4 $15 {[%emt 0:01:45]} 26. Qd2 $2 {[%emt 0:05:03] [#]} (26. Be2 $15 Bh2+ 27. Kh1 Nxf2+ 28. Rxf2 Rxf2 29. Qxc5) 26... d4 $2 {[%emt 0:01:48]} 27. Qe2 $11 {[%emt 0:01:30]} (27. exd4 $2 Bf4 28. Qd1 Bxc1 29. Qxg4 (29. Bc4+ $2 Kh8 $19) 29... Bxb2 $19) 27... h5 {[%emt 0:09:05][%mdl 8192]} ({Besser ist} 27... Bh2+ $1 $14 28. Kh1 Bg1) 28. gxh6 $18 {[%emt 0:05:07]} (28. exd4 Bh2+ 29. Kh1 Bg1 30. Bc4+ (30. Rxg1 $2 Qh2#) 30... Kh7 31. Qxe4+ (31. Rxg1 $2 Qh2#) 31... g6 $18) 28... Qc8 {[%emt 0:01:05] ...Qf5 ist eine echte Drohung.} 29. Qc4+ $2 {[%emt 0:04:57]} (29. exd4 $18 Qf5 30. Bc4+ Kh8 31. Rc3 cxd4 32. Rh3) 29... Kh8 $1 $11 {[%emt 0:00:10] [#]} 30. Bxd4 {[%emt 0:08:27]} Qf5 $1 $40 {[%emt 0:00:50][%cal Of5h5][%mdl 128] Schwarz greift an. Schach mit Chili.} 31. hxg7+ {[%emt 0:00:40]} (31. Bxg7+ Rxg7 32. hxg7+ Kxg7 $11) (31. Bxc5 Bh2+ 32. Kh1 Qh5 33. hxg7+ Rxg7) 31... Rxg7 {[%emt 0:00:01]} 32. Bxg7+ {[%emt 0:00:26]} Kxg7 {[%emt 0:00:04]} 33. Qc3+ $2 {[%emt 0:00:49][%mdl 8192] Schwarz hat alles unter Kontrolle.} (33. f4 $1 $15 Qh5 34. Qc3+ (34. Qxe4 $2 Qh2#) 34... Kh6 (34... Be5 35. Qxe5+ Nxe5 36. fxe5 $11) 35. Rf2 Qh2+ 36. Kf1 Nxf2 37. Qc4 (37. Kxf2 Be7 $15) 37... Bxf4 (37... Qh4 38. Qe6+ Rf6 39. Qg8 $11) 38. exf4 (38. Kxf2 Qg3+ 39. Kf1 Bg5+) 38... Qxf4 39. Ke2 (39. Qxc5 Nd3+ 40. Kg1 Nxc5 41. Rf1 Qe3+ 42. Kh2 Rg8 43. g4 Rxg4 44. Rf6+ Kg7) 39... Qg4+ 40. Kd2) 33... Be5 $1 $19 {[%emt 0:05:01] ( -> ...Rh8)} 34. Qxc5 {[%emt 0:03:47]} Qh5 $1 {[%emt 0:00:07][%csl Ge5,Gg4][%cal Rh5h2]} 35. Qxf8+ {[%emt 0:01:24]} Kxf8 {[%emt 0:00:04][%csl Ge5,Gg4][%cal Rh5h2]} 36. Rfd1 {[%emt 0:00:06]} Qh2+ {[%emt 0:00:27]} 37. Kf1 {[%emt 0:00:04]} Qh1+ {[%emt 0:00:13]} 38. Ke2 {[%emt 0:00:05]} Qxg2 {[%emt 0:00:10][%csl Gg4][%cal Rg2f2]} 39. Rc8+ {[%emt 0:01:25]} Ke7 {[%emt 0:04:02][%csl Gg4][%cal Rg2f2]} 40. Rd7+ {[%emt 0:00:39] [#]} Ke6 $1 {[%emt 0:00:00]} (40... Kf6 41. Rf8+ Ke6 42. Rb7 $17) 41. Re8+ {[%emt 0:00:07] [#]} (41. Rf8 $142 Bf6 42. Re8+ Kf5 43. Rd5+ Kg6 44. Rg8+ Bg7 45. Rxg7+ Kxg7 46. Rf5) 41... Kf5 $1 {[%emt 0:00:00]} 42. Rf7+ {[%emt 0:02:30]} Bf6 {[%emt 0:00:00]} 43. Rxf6+ {[%emt 0:02:11]} Kxf6 {[%emt 0:00:00]} 44. Rf8+ {[%emt 0:00:07]} Ke7 {[%emt 0:00:00]} 45. Rf4 {[%emt 0:00:16]} Nf6 $2 {[%emt 0:00:00]} (45... Ne5 46. Bc4 Qh1) 46. Bc4 $2 {[%emt 0:00:54]} (46. Bc6) 46... Qh1 {[%emt 0:00:09]} 47. Rf5 {[%emt 0:00:39]} Qa1 {[%emt 0:00:27] Droht ...Ng4 und aus.} 48. a5 $2 {[%emt 0:00:37]} (48. Rf4) 48... Nd7 {[%emt 0:00:26]} 49. a6 $2 {[%emt 0:01:15]} (49. f4 Qb2+ 50. Kd1) 49... Ne5 {[%emt 0:00:07]} 50. Bb5 {[%emt 0:00:22]} Nf3 {[%emt 0:00:27] Schwarz setzt Matt.} 51. Rxf3 {[%emt 0:00:44] KQ-KRB} Qa2+ {[%emt 0:00:08]} 52. Kf1 {[%emt 0:00:11]} exf3 {[%emt 0:00:11][%cal Ra2a1]} 53. Kg1 {[%emt 0:00:03]} Qxb3 {[%emt 0:00:26]} 54. Bc6 {[%emt 0:00:39]} Qg8+ {[%emt 0:00:19]} 55. Kf1 {[%emt 0:00:07]} Qc4+ {[%emt 0:00:09]} 56. Kg1 {[%emt 0:00:04]} Qxc6 {[%emt 0:00:11] Gewichteter Fehlerwert: Weiß=0.94/Schwarz=0.49.  Verlustzug:     	Weiß=2     	Schwarz=1     Gewinn verpasst:   	Weiß=2     	Schwarz=1     Fehler:       	Weiß=6     	Schwarz=2     Ungenau:       	Weiß=5     	Schwarz=4     OK:         	Weiß=11    	Schwarz=6     Bester:       	Weiß=2     	Schwarz=2     Stark:        	---       	Schwarz=6} 0-1

[Event "1000GM Schev-A February 2024"]
[Site "Santa Clara"]
[Date "2024.02.18"]
[Round "2.5"]
[White "Sivakumar, Shaaketh"]
[Black "Jimenez Garcia, Emmanuel"]
[Result "0-1"]
[ECO "B53"]
[WhiteElo "2364"]
[BlackElo "2394"]
[Annotator "TA"]
[PlyCount "62"]
[EventDate "2024.02.13"]
[EventType "schev"]
[EventCountry "USA"]
[SourceTitle "playchess.com"]
[Source "ChessBase"]
[SourceQuality "1"]
[TimeControl "5400+30"]

{[%evp 9,62,4,0,-1,5,0,7,0,0,0,0,0,3,-30,-27,-61,-60,-59,-68,-99,-103,-101,-113,-111,-113,-133,-137,-114,-118,-210,-215,-251,-251,-244,-245,-251,-257,-358,-395,-380,-408,-414,-416,-539,-499,-499,-450,-518,-516,-488,-509,-513,-506,-502,-495]} 1. e4 {[%emt 0:00:01]} c5 {[%emt 0:04:18]} 2. Nf3 {[%emt 0:00:26]} d6 {[%emt 0:00:08]} 3. d4 {[%emt 0:00:28]} cxd4 {[%emt 0:00:07]} 4. Qxd4 {[%emt 0:00:05]} Nf6 {[%emt 0:00:11]} 5. Bb5+ {[%emt 0:00:09]} Bd7 {[%emt 0:00:14]} 6. c4 {[%emt 0:00:08]} g6 {[%emt 0:02:25]} 7. O-O {[%emt 0:01:42]} Bg7 {[%emt 0:00:29]} 8. Nc3 {[%emt 0:00:50] The position is equal.} O-O {[%emt 0:00:16]} 9. Qd3 {[%emt 0:00:57]} a6 {[%emt 0:02:43]} 10. Bxd7 {[%emt 0:00:55]} Nbxd7 {[%emt 0:00:04]} 11. h3 {[%emt 0:02:09]} Qc7 {[%emt 0:01:22]} 12. Be3 {[%emt 0:10:36]} Rfc8 {[%emt 0:00:46]} 13. b3 {[%emt 0:08:29] [#]} b5 $1 {[%emt 0:01:30]} 14. Nd2 {[%emt 0:03:01] Black keeps a firm grip on the game.} (14. Rac1 Nc5) 14... bxc4 {[%emt 0:11:24]} 15. Nxc4 {[%emt 0:04:46]} Ne5 {[%emt 0:00:30]} 16. Nxe5 {[%emt 0:00:02] Hoping for Nc4.} Qxc3 {[%emt 0:00:07]} 17. Bd4 {[%emt 0:00:24]} Qxd3 {[%emt 0:03:13]} 18. Nxd3 {[%emt 0:00:02] [#]} e5 $1 {[%emt 0:00:06]} ({Much less strong is} 18... Nxe4 19. Bxg7 Kxg7 20. Rfe1 $11) 19. Be3 {[%emt 0:02:50]} (19. Bb2 $17) 19... Nxe4 $19 {[%emt 0:00:33]} 20. Rac1 {[%emt 0:04:35]} Nc3 {[%emt 0:01:37]} 21. Rc2 {[%emt 0:00:48] Prevents Ne2+.} d5 {[%emt 0:00:06] White must now prevent ...d4.} 22. Rfc1 {[%emt 0:02:09] [#]} d4 {[%emt 0:02:14]} 23. f4 {[%emt 0:00:43]} e4 {[%emt 0:27:41]} 24. Ne5 {[%emt 0:00:11]} f6 {[%emt 0:00:52]} 25. Nc4 {[%emt 0:01:04]} f5 {[%emt 0:00:16][%cal Oc3d5]} 26. Ne5 {[%emt 0:00:08]} Bxe5 {[%emt 0:09:28] Black is clearly winning.} 27. fxe5 {[%emt 0:00:03]} Kf7 {[%emt 0:00:07]} 28. Kf1 {[%emt 0:00:17]} ({Worse is} 28. Bxd4 Ne2+ 29. Rxe2 Rxc1+ 30. Kf2 Rac8) 28... dxe3 {[%emt 0:00:07]} 29. Rxc3 {[%emt 0:00:02]} Rxc3 {[%emt 0:00:56]} 30. Rxc3 {[%emt 0:00:02]} Ke6 {[%emt 0:02:04]} 31. Rxe3 {[%emt 0:03:39]} Rc8 {[%emt 0:00:27] Prevents Rc3.   Weighted Error Value: White=0.22 (precise) /Black=0.02 (flawless) .  Mistake:       	White=1     	---        Inaccurate:     	White=4     	---        OK:         	White=9     	Black=19     Best:        	---       	Black=3      Strong:       	---       	Black=1} 0-1

[Event "1000GM Schev-A February 2024"]
[Site "Santa Clara"]
[Date "2024.02.18"]
[Round "3.1"]
[White "Arutla, Aditya"]
[Black "Arenas, David"]
[Result "1/2-1/2"]
[ECO "C56"]
[WhiteElo "2132"]
[BlackElo "2406"]
[Annotator "TA"]
[PlyCount "53"]
[EventDate "2024.02.13"]
[EventType "schev"]
[EventCountry "USA"]
[SourceTitle "playchess.com"]
[Source "ChessBase"]
[SourceQuality "1"]
[TimeControl "5400+30"]

{[%evp 27,53,29,33,41,15,8,26,14,0,0,0,0,0,0,0,0,21,14,22,0,0,0,0,-10,-10,-12,0,-11]} 1. e4 {[%emt 0:00:01]} e5 {[%emt 0:04:30]} 2. Nf3 {[%emt 0:00:20]} Nc6 {[%emt 0:00:05]} 3. d4 {[%emt 0:00:15]} exd4 {[%emt 0:00:37]} 4. Bc4 {[%emt 0:00:17]} Nf6 {[%emt 0:00:16]} 5. O-O {[%emt 0:00:15]} Nxe4 {[%emt 0:02:22]} 6. Re1 {[%emt 0:00:07]} d5 {[%emt 0:00:03]} 7. Bxd5 {[%emt 0:00:06]} Qxd5 {[%emt 0:00:02]} 8. Nc3 {[%emt 0:00:07]} Qa5 {[%emt 0:00:17]} 9. Nxe4 {[%emt 0:00:15]} Be6 {[%emt 0:00:11]} 10. Neg5 {[%emt 0:00:21]} O-O-O {[%emt 0:00:54]} 11. Nxe6 {[%emt 0:00:10]} fxe6 {[%emt 0:00:02]} 12. Rxe6 {[%emt 0:00:02]} Bd6 {[%emt 0:00:33]} 13. Bg5 {[%emt 0:00:18][%cal Bc1g5,Bg5h4,Bh4g3][%mdl 32]} Rde8 {[%emt 0:08:57]} 14. Qe2 {[%emt 0:00:30]} Kd7 {[%emt 0:00:07]} 15. Rxe8 {[%emt 0:00:17]} Rxe8 {[%emt 0:00:01]} 16. Qd3 {[%emt 1:35:09][%csl LRd4,LRh7]} h6 {[%emt 0:01:11]} 17. Bh4 {[%emt 0:00:00][%cal Od3g6] White has an edge.} g5 {[%emt 0:13:15] The position is equal.} 18. Bg3 {[%emt 0:00:00]} g4 {[%emt 0:00:12]} 19. Nd2 {[%emt 0:00:00]} h5 {[%emt 0:01:13]} 20. Ne4 {[%emt 0:00:00]} Qf5 {[%emt 0:00:34] Inhibits Nf6+.} 21. Re1 {[%emt 0:00:00]} Bxg3 {[%emt 0:03:49]} 22. hxg3 {[%emt 0:00:00]} Re5 {[%emt 0:00:03][%cal Be8e5,Be5d5,Bd5d4][%mdl 32] Prevents b4.} ({Don't blunder} 22... Kc8 $2 23. Nd6+ cxd6 24. Rxe8+ (24. Qxf5+ Kd8 $18) 24... Kd7 25. Qxf5+ $18) 23. c3 {[%emt 0:00:00]} Kc8 {[%emt 0:04:01]} 24. cxd4 {[%emt 0:00:00]} Rd5 {[%emt 0:00:24]} 25. Qe3 {[%emt 0:00:00]} Rxd4 {[%emt 0:02:19]} 26. Nc3 {[%emt 0:00:00]} a6 {[%emt 0:01:47]} 27. Re2 {[%emt 0:00:00] A rather calm draw.   Weighted Error Value: White=0.04 (flawless) /Black=0.04 (flawless) .  OK:         	White=5     	Black=8} 1/2-1/2